fUST/lending_fUST_20250318
["ID","MTS","AMOUNT","RATE_DAILY","PERIOD"]
[356305909,1742241042669,-500.0,8.493e-05,2]
[356305910,1742241042681,-500.0,8.493e-05,2]
[356305911,1742241042691,-500.0,8.493e-05,2]
[356305912,1742241042701,-500.0,8.493e-05,2]
[356305913,1742241042712,-500.0,8.493e-05,2]
[356305914,1742241042723,-500.0,8.493e-05,2]
[356305915,1742241042734,-500.0,8.493e-05,2]
[356305916,1742241042744,-500.0,8.493e-05,2]
[356305917,1742241042754,-500.0,8.493e-05,2]
[356305918,1742241042764,-500.0,8.493e-05,2]
[356305919,1742241042774,-500.0,8.493e-05,2]
[356305920,1742241042785,-528.52325794,8.493e-05,2]
[356305921,1742241042794,-500.0,8.493e-05,2]
[356305922,1742241042804,-500.0,8.493e-05,2]
[356305923,1742241042814,-500.0,8.493e-05,2]
[356305924,1742241042823,-500.0,8.493e-05,2]
[356305925,1742241042833,-543.50971028,8.493e-05,2]
[356305926,1742241042843,-500.0,8.493e-05,2]
[356305927,1742241042853,-972.84,8.493e-05,2]
[356305928,1742241042863,-503.9119852,8.493e-05,2]
[356305929,1742241042872,-500.0,8.493e-05,2]
[356305930,1742241042882,-500.0,8.493e-05,2]
[356305931,1742241042892,-533.10820468,8.493e-05,2]
[356305932,1742241042902,-182.17,8.493e-05,2]
[356305933,1742241042912,-833.73,8.493e-05,2]
[356305934,1742241042922,-500.0,8.493e-05,2]
[356305935,1742241042933,-500.0,8.493e-05,2]
[356305936,1742241042942,-932.54,8.493e-05,2]
[356305937,1742241042952,-506.38585542,8.493e-05,2]
[356305938,1742241042961,-500.0,8.493e-05,2]
[356305939,1742241042971,-500.0,8.493e-05,2]
[356305940,1742241042980,-500.0,8.493e-05,2]
[356305941,1742241042990,-500.0,8.493e-05,2]
[356305942,1742241043000,-500.85746284,8.493e-05,2]
[356305943,1742241043009,-508.07938417,8.493e-05,2]
[356305944,1742241043019,-503.5439522,8.493e-05,2]
[356305945,1742241043028,-500.0,8.493e-05,2]
[356305946,1742241043039,-500.0,8.493e-05,2]
[356305947,1742241043048,-506.46758048,8.493e-05,2]
[356305948,1742241043058,-500.0,8.493e-05,2]
[356305949,1742241043067,-500.0,8.493e-05,2]
[356305950,1742241043077,-1426.76,8.493e-05,2]
[356305951,1742241043086,-500.0,8.493e-05,2]
[356305952,1742241043096,-503.6928128,8.493e-05,2]
[356305953,1742241043106,-500.0,8.493e-05,2]
[356305955,1742241043115,-291.11121025,8.493e-05,2]
[356305956,1742241043125,-500.0,8.493e-05,2]
[356305957,1742241043135,-500.0,8.493e-05,2]
[356305958,1742241043147,-500.0,8.493e-05,2]
[356305959,1742241043156,-500.0,8.493e-05,2]
[356305960,1742241043167,-500.0,8.493e-05,2]
[356305961,1742241043176,-201.25368525,8.493e-05,2]
[356305962,1742241043186,-505.49299255,8.493e-05,2]
[356305963,1742241043195,-514.59693065,8.493e-05,2]
[356305964,1742241043205,-500.0,8.493e-05,2]
[356305965,1742241043215,-511.58388099,8.493e-05,2]
[356305966,1742241043224,-500.0,8.493e-05,2]
[356305968,1742241043234,-504.47386439,8.493e-05,2]
[356305970,1742241043244,-548.05078481,8.493e-05,2]
[356305972,1742241043254,-500.0,8.493e-05,2]
[356305974,1742241043264,-500.0,8.493e-05,2]
[356305976,1742241043275,-503.21868669,8.493e-05,2]
[356305977,1742241043286,-506.41686475,8.493e-05,2]
[356305978,1742241043296,-500.0,8.493e-05,2]
[356305979,1742241043305,-500.0,8.493e-05,2]
[356305981,1742241043315,-500.0,8.493e-05,2]
[356305983,1742241043324,-501.81245377,8.493e-05,2]
[356305984,1742241043333,-500.0,8.493e-05,2]
[356305985,1742241043343,-500.0,8.493e-05,2]
[356305986,1742241043352,-500.0,8.493e-05,2]
[356305987,1742241043362,-508.05973908,8.493e-05,2]
[356305988,1742241043371,-500.0,8.493e-05,2]
[356305989,1742241043381,-503.23260544,8.493e-05,2]
[356305990,1742241043391,-504.84616366,8.493e-05,2]
[356305991,1742241043400,-500.0,8.493e-05,2]
[356305992,1742241043410,-389.42271541,8.493e-05,2]
[356305993,1742241043420,-505.20086062,8.493e-05,2]
[356305994,1742241043430,-500.0,8.493e-05,2]
[356305995,1742241043439,-511.90312468,8.493e-05,2]
[356305996,1742241043449,-516.49923486,8.493e-05,2]
[356305997,1742241043459,-508.37514658,8.493e-05,2]
[356305998,1742241043468,-679.5,8.493e-05,2]
[356305999,1742241043478,-500.0,8.493e-05,2]
[356306000,1742241043488,-500.0,8.493e-05,2]
[356306001,1742241043497,-500.0,8.493e-05,2]
[356306002,1742241043507,-500.0,8.493e-05,2]
[356306003,1742241043517,-500.0,8.493e-05,2]
[356306004,1742241043526,-500.0,8.493e-05,2]
[356306005,1742241043535,-501.92477008,8.493e-05,2]
[356306006,1742241043545,-500.0,8.493e-05,2]
[356306007,1742241043555,-500.0,8.493e-05,2]
[356306008,1742241043564,-500.0,8.493e-05,2]
[356306009,1742241043574,-500.0,8.493e-05,2]
[356306010,1742241043583,-500.0,8.493e-05,2]
[356306011,1742241043593,-500.0,8.493e-05,2]
[356306012,1742241043602,-500.0,8.493e-05,2]
[356306013,1742241043612,-500.0,8.493e-05,2]
[356306014,1742241043622,-500.0,8.493e-05,2]
[356306015,1742241043631,-500.0,8.493e-05,2]
[356306016,1742241043642,-500.0,8.493e-05,2]
[356306017,1742241043652,-500.0,8.493e-05,2]
[356306018,1742241043661,-500.0,8.493e-05,2]
[356306019,1742241043671,-500.0,8.493e-05,2]
[356306020,1742241043682,-500.0,8.493e-05,2]
[356306021,1742241043691,-500.0,8.493e-05,2]
[356306022,1742241043701,-500.0,8.493e-05,2]
[356306023,1742241043710,-500.0,8.493e-05,2]
[356306024,1742241043719,-500.0,8.493e-05,2]
[356306025,1742241043730,-500.0,8.493e-05,2]
[356306026,1742241043740,-500.0,8.493e-05,2]
[356306027,1742241043750,-500.0,8.493e-05,2]
[356306028,1742241043762,-765.94,8.493e-05,2]
[356306029,1742241043772,-500.0,8.493e-05,2]
[356306030,1742241043782,-964.85,8.493e-05,2]
[356306031,1742241043792,-211.28160652,8.493e-05,2]
[356306032,1742241043802,-1000.0,8.493e-05,2]
[356306033,1742241043812,-500.0,8.493e-05,2]
[356306034,1742241043822,-500.0,8.493e-05,2]
[356306035,1742241043832,-500.0,8.493e-05,2]
[356306036,1742241043841,-500.0,8.493e-05,2]
[356306037,1742241043851,-554.81994516,8.493e-05,2]
[356306038,1742241043860,-500.0,8.493e-05,2]
[356306039,1742241043870,-500.0,8.493e-05,2]
[356306040,1742241043880,-500.0,8.493e-05,2]
[356306041,1742241043890,-532.54423017,8.493e-05,2]
[356306042,1742241043899,-500.0,8.493e-05,2]
[356306043,1742241043909,-500.63931598,8.493e-05,2]
[356306044,1742241043920,-500.0,8.493e-05,2]
[356306046,1742241043930,-500.0,8.493e-05,2]
[356306048,1742241043939,-500.0,8.493e-05,2]
[356306049,1742241043948,-500.0,8.493e-05,2]
[356306050,1742241043958,-500.0,8.493e-05,2]
[356306051,1742241043967,-500.0,8.493e-05,2]
[356306052,1742241043977,-511.95917702,8.493e-05,2]
[356306053,1742241043987,-500.0,8.493e-05,2]
[356306055,1742241043998,-287.86526528,8.493e-05,2]
[356306056,1742241044008,-500.0,8.493e-05,2]
[356306057,1742241044018,-500.0,8.493e-05,2]
[356306058,1742241044029,-500.0,8.493e-05,2]
[356306059,1742241044039,-500.0,8.493e-05,2]
[356306060,1742241044048,-500.0,8.493e-05,2]
[356306061,1742241044057,-555.81278231,8.493e-05,2]
[356306062,1742241044066,-500.0,8.493e-05,2]
[356306063,1742241044076,-500.0,8.493e-05,2]
[356306064,1742241044085,-564.98,8.493e-05,2]
[356306065,1742241044095,-500.0,8.493e-05,2]
[356306066,1742241044104,-604.7,8.493e-05,2]
[356306067,1742241044113,-500.0,8.493e-05,2]
[356306068,1742241044122,-523.68457716,8.493e-05,2]
[356306069,1742241044131,-500.0,8.493e-05,2]
[356306070,1742241044141,-500.0,8.493e-05,2]
[356306071,1742241044151,-500.0,8.493e-05,2]
[356306072,1742241044160,-500.0,8.493e-05,2]
[356306073,1742241044169,-500.0,8.493e-05,2]
[356306074,1742241044178,-500.0,8.493e-05,2]
[356306075,1742241044188,-500.0,8.493e-05,2]
[356306076,1742241044197,-500.0,8.493e-05,2]
[356306077,1742241044206,-500.0,8.493e-05,2]
[356306078,1742241044216,-500.0,8.493e-05,2]
[356306079,1742241044226,-500.0,8.493e-05,2]
[356306080,1742241044235,-506.06119675,8.493e-05,2]
[356306081,1742241044246,-500.0,8.493e-05,2]
[356306082,1742241044256,-507.10588234,8.493e-05,2]
[356306083,1742241044265,-500.0,8.493e-05,2]
[356306084,1742241044275,-500.0,8.493e-05,2]
[356306085,1742241044284,-502.80106275,8.493e-05,2]
[356306086,1742241044293,-508.40741285,8.493e-05,2]
[356306087,1742241044303,-500.0,8.493e-05,2]
[356306088,1742241044312,-512.90405299,8.493e-05,2]
[356306089,1742241044322,-500.0,8.493e-05,2]
[356306090,1742241044331,-151.0,8.493e-05,2]
[356306091,1742241044341,-151.0,8.493e-05,2]
[356306092,1742241044351,-500.0,8.493e-05,2]
[356306093,1742241044360,-500.0,8.493e-05,2]
[356306094,1742241044369,-512.96369754,8.493e-05,2]
[356306095,1742241044379,-500.0,8.493e-05,2]
[356306096,1742241044389,-503.95848435,8.493e-05,2]
[356306097,1742241044399,-516.04645356,8.493e-05,2]
[356306098,1742241044408,-6185.17,8.493e-05,2]
[356306099,1742241044417,-500.0,8.493e-05,2]
[356306100,1742241044427,-507.6033869,8.493e-05,2]
[356306101,1742241044436,-500.0,8.493e-05,2]
[356306102,1742241044446,-500.0,8.493e-05,2]
[356306103,1742241044456,-506.46767834,8.493e-05,2]
[356306104,1742241044466,-500.0,8.493e-05,2]
[356306105,1742241044475,-500.0,8.493e-05,2]
[356306106,1742241044485,-518.76648557,8.493e-05,2]
[356306107,1742241044495,-8362.83,8.493e-05,2]
[356306108,1742241044505,-500.0,8.493e-05,2]
[356306109,1742241044515,-502.72547911,8.493e-05,2]
[356306110,1742241044524,-500.0,8.493e-05,2]
[356306111,1742241044533,-500.0,8.493e-05,2]
[356306112,1742241044543,-525.84973861,8.493e-05,2]
[356306113,1742241044552,-500.0,8.493e-05,2]
[356306114,1742241044562,-511.01202322,8.493e-05,2]
[356306115,1742241044571,-500.0,8.493e-05,2]
[356306116,1742241044580,-500.0,8.493e-05,2]
[356306117,1742241044590,-510.97205541,8.493e-05,2]
[356306118,1742241044599,-511.04323723,8.493e-05,2]
[356306119,1742241044608,-500.0,8.493e-05,2]
[356306120,1742241044617,-500.0,8.493e-05,2]
[356306121,1742241044627,-500.0,8.493e-05,2]
[356306122,1742241044637,-505.53520805,8.493e-05,2]
[356306123,1742241044647,-3991.76,8.493e-05,2]
[356306124,1742241044657,-500.0,8.493e-05,2]
[356306125,1742241044666,-500.0,8.493e-05,2]
[356306126,1742241044676,-520.03475853,8.493e-05,2]
[356306127,1742241044688,-500.0,8.493e-05,2]
[356306128,1742241044697,-508.16143812,8.493e-05,2]
[356306129,1742241044707,-500.0,8.493e-05,2]
[356306130,1742241044716,-500.0,8.493e-05,2]
[356306131,1742241044727,-518.84138529,8.493e-05,2]
[356306132,1742241044736,-500.0,8.493e-05,2]
[356306133,1742241044745,-500.0,8.493e-05,2]
[356306134,1742241044755,-516.16621979,8.493e-05,2]
[356306135,1742241044764,-500.0,8.493e-05,2]
[356306136,1742241044774,-10970.6,8.493e-05,2]
[356306137,1742241044783,-531.8084285,8.493e-05,2]
[356306138,1742241044793,-630.19300719,8.493e-05,2]
[356306139,1742241044802,-508.05085496,8.493e-05,2]
[356306140,1742241044811,-500.0,8.493e-05,2]
[356306141,1742241044822,-500.0,8.493e-05,2]
[356306142,1742241044831,-1650.11,8.493e-05,2]
[356306143,1742241044840,-500.0,8.493e-05,2]
[356306144,1742241044849,-500.0,8.493e-05,2]
[356306145,1742241044859,-500.0,8.493e-05,2]
[356306146,1742241044868,-507.29592543,8.493e-05,2]
[356306147,1742241044877,-500.0,8.493e-05,2]
[356306148,1742241044886,-500.0,8.493e-05,2]
[356306149,1742241044896,-500.0,8.493e-05,2]
[356306150,1742241044905,-505.77286047,8.493e-05,2]
[356306151,1742241044914,-1778.6,8.493e-05,2]
[356306152,1742241044924,-500.0,8.493e-05,2]
[356306153,1742241044933,-523.51698919,8.493e-05,2]
[356306154,1742241044943,-500.0,8.493e-05,2]
[356306155,1742241044952,-500.0,8.493e-05,2]
[356306156,1742241044962,-500.0,8.493e-05,2]
[356306157,1742241044972,-508.72711791,8.493e-05,2]
[356306158,1742241044981,-519.1717083,8.493e-05,2]
[356306159,1742241044991,-500.0,8.493e-05,2]
[356306160,1742241045001,-500.0,8.493e-05,2]
[356306161,1742241045010,-503.43070622,8.493e-05,2]
[356306162,1742241045153,-522.15570571,8.493e-05,2]
[356306163,1742241045163,-503.31548896,8.493e-05,2]
[356306164,1742241045174,-500.0,8.493e-05,2]
[356306165,1742241045183,-500.0,8.493e-05,2]
[356306166,1742241045193,-500.0,8.493e-05,2]
[356306167,1742241045203,-500.0,8.493e-05,2]
[356306168,1742241045212,-1510.51,8.493e-05,2]
[356306169,1742241045222,-500.0,8.493e-05,2]
[356306170,1742241045232,-500.0,8.493e-05,2]
[356306171,1742241045242,-500.0,8.493e-05,2]
[356306172,1742241045252,-500.0,8.493e-05,2]
[356306173,1742241045263,-500.0,8.493e-05,2]
[356306174,1742241045273,-519.30688524,8.493e-05,2]
[356306175,1742241045283,-500.0,8.493e-05,2]
[356306176,1742241045293,-1918.79,8.493e-05,2]
[356306177,1742241045302,-500.0,8.493e-05,2]
[356306178,1742241045311,-500.0,8.493e-05,2]
[356306179,1742241045321,-500.0,8.493e-05,2]
[356306180,1742241045331,-495.78276745,8.493e-05,2]
[356306181,1742241045341,-500.0,8.493e-05,2]
[356306182,1742241045350,-562.88245015,8.493e-05,2]
[356306183,1742241045359,-500.0,8.493e-05,2]
[356306184,1742241045370,-500.0,8.493e-05,2]
[356306185,1742241045379,-500.0,8.493e-05,2]
[356306186,1742241045388,-500.0,8.493e-05,2]
[356306187,1742241045399,-500.0,8.493e-05,2]
[356306188,1742241045407,-507.59826714,8.493e-05,2]
[356306189,1742241045416,-500.0,8.493e-05,2]
[356306190,1742241045425,-500.0,8.493e-05,2]
[356306191,1742241045434,-522.29911912,8.493e-05,2]
[356306192,1742241045445,-511.67604807,8.493e-05,2]
[356306193,1742241045454,-505.61127743,8.493e-05,2]
[356306194,1742241045463,-500.0,8.493e-05,2]
[356306195,1742241045473,-514.72974977,8.493e-05,2]
[356306196,1742241045483,-520.38661895,8.493e-05,2]
[356306197,1742241045492,-4156.46,8.493e-05,2]
[356306198,1742241045501,-500.0,8.493e-05,2]
[356306199,1742241045511,-500.0,8.493e-05,2]
[356306200,1742241045520,-517.09285064,8.493e-05,2]
[356306201,1742241045530,-500.0,8.493e-05,2]
[356306202,1742241045539,-503.06622497,8.493e-05,2]
[356306203,1742241045548,-542.4187571,8.493e-05,2]
[356306204,1742241045558,-500.0,8.493e-05,2]
[356306205,1742241045568,-792.17,8.493e-05,2]
[356306206,1742241045577,-500.0,8.493e-05,2]
[356306207,1742241045587,-504.59119608,8.493e-05,2]
[356306208,1742241045596,-500.0,8.493e-05,2]
[356306209,1742241045606,-520.69904105,8.493e-05,2]
[356306210,1742241045615,-522.15137204,8.493e-05,2]
[356306211,1742241045625,-516.34439788,8.493e-05,2]
[356306212,1742241045634,-500.0,8.493e-05,2]
[356306213,1742241045644,-500.0,8.493e-05,2]
[356306214,1742241045653,-7347.01,8.493e-05,2]
[356306215,1742241045663,-500.0,8.493e-05,2]
[356306216,1742241045673,-529.86834681,8.493e-05,2]
[356306217,1742241045686,-500.0,8.493e-05,2]
[356306218,1742241045695,-535.284744,8.493e-05,2]
[356306219,1742241045705,-535.6635935,8.493e-05,2]
[356306220,1742241045714,-514.74271365,8.493e-05,2]
[356306221,1742241045725,-8404.24,8.493e-05,2]
[356306222,1742241045734,-518.78570705,8.493e-05,2]
[356306223,1742241045744,-500.0,8.493e-05,2]
[356306224,1742241045754,-505.56801672,8.493e-05,2]
[356306225,1742241045763,-516.7517724,8.493e-05,2]
[356306226,1742241045773,-521.90685517,8.493e-05,2]
[356306227,1742241045783,-1049.08,8.493e-05,2]
[356306228,1742241045792,-500.0,8.493e-05,2]
[356306229,1742241045801,-500.0,8.493e-05,2]
[356306230,1742241045811,-532.98,8.493e-05,2]
[356306231,1742241045820,-522.11711865,8.493e-05,2]
[356306232,1742241045829,-500.0,8.493e-05,2]
[356306233,1742241045839,-500.0,8.493e-05,2]
[356306234,1742241045849,-304.38154324,8.493e-05,2]
[356306235,1742241045858,-500.0,8.493e-05,2]
[356306236,1742241045868,-500.0,8.493e-05,2]
[356306237,1742241045877,-500.0,8.493e-05,2]
[356306238,1742241045887,-500.0,8.493e-05,2]
[356306239,1742241045896,-533.03507575,8.493e-05,2]
[356306240,1742241045906,-509.57559627,8.493e-05,2]
[356306241,1742241045914,-500.0,8.493e-05,2]
[356306242,1742241045924,-500.0,8.493e-05,2]
[356306243,1742241045934,-500.0,8.493e-05,2]
[356306244,1742241045943,-500.0,8.493e-05,2]
[356306245,1742241045953,-500.0,8.493e-05,2]
[356306246,1742241045962,-3749.55,8.493e-05,2]
[356306247,1742241045972,-524.24336127,8.493e-05,2]
[356306248,1742241045982,-500.0,8.493e-05,2]
[356306249,1742241045991,-500.0,8.493e-05,2]
[356306250,1742241046001,-431.50066094,8.493e-05,2]
[356306251,1742241046011,-500.0,8.493e-05,2]
[356306252,1742241046020,-500.0,8.493e-05,2]
[356306253,1742241046030,-518.04688008,8.493e-05,2]
[356306254,1742241046039,-500.0,8.493e-05,2]
[356306255,1742241046049,-951.71,8.493e-05,2]
[356306256,1742241046059,-534.1355319,8.493e-05,2]
[356306257,1742241046069,-516.14528818,8.493e-05,2]
[356306258,1742241046079,-500.0,8.493e-05,2]
[356306259,1742241046088,-500.0,8.493e-05,2]
[356306260,1742241046100,-520.36634247,8.493e-05,2]
[356306261,1742241046110,-500.0,8.493e-05,2]
[356306262,1742241046119,-500.0,8.493e-05,2]
[356306263,1742241046129,-600.12162132,8.493e-05,2]
[356306264,1742241046139,-500.0,8.493e-05,2]
[356306265,1742241046148,-500.0,8.493e-05,2]
[356306266,1742241046157,-515.86468448,8.493e-05,2]
[356306267,1742241046167,-500.0,8.493e-05,2]
[356306268,1742241046176,-2030.93,8.493e-05,2]
[356306269,1742241046186,-14675.8,8.493e-05,2]
[356306270,1742241046196,-515.00952224,8.493e-05,2]
[356306271,1742241046205,-500.0,8.493e-05,2]
[356306272,1742241046214,-500.0,8.493e-05,2]
[356306273,1742241046223,-500.0,8.493e-05,2]
[356306274,1742241046232,-500.0,8.493e-05,2]
[356306275,1742241046242,-487.08368933,8.493e-05,2]
[356306276,1742241046251,-515.96897737,8.493e-05,2]
[356306277,1742241046261,-500.0,8.493e-05,2]
[356306278,1742241046271,-500.0,8.493e-05,2]
[356306279,1742241046280,-500.0,8.493e-05,2]
[356306280,1742241046290,-500.0,8.493e-05,2]
[356306281,1742241046299,-5256.51,8.493e-05,2]
[356306282,1742241046309,-500.0,8.493e-05,2]
[356306283,1742241046319,-500.0,8.493e-05,2]
[356306284,1742241046329,-508.37480771,8.493e-05,2]
[356306285,1742241046338,-4394.55,8.493e-05,2]
[356306286,1742241046347,-500.0,8.493e-05,2]
[356306287,1742241046357,-510.55267228,8.493e-05,2]
[356306288,1742241046366,-503.93231536,8.493e-05,2]
[356306289,1742241046377,-500.0,8.493e-05,2]
[356306290,1742241046386,-500.0,8.493e-05,2]
[356306291,1742241046395,-507.38616529,8.493e-05,2]
[356306292,1742241046405,-500.0,8.493e-05,2]
[356306293,1742241046414,-926.13,8.493e-05,2]
[356306294,1742241046425,-3877.4,8.493e-05,2]
[356306295,1742241046434,-3223.98,8.493e-05,2]
[356306296,1742241046443,-1917.49,8.493e-05,2]
[356306297,1742241046453,-500.0,8.493e-05,2]
[356306298,1742241046462,-500.0,8.493e-05,2]
[356306299,1742241046472,-500.0,8.493e-05,2]
[356306300,1742241046481,-500.0,8.493e-05,2]
[356306302,1742241046491,-544.34580159,8.493e-05,2]
[356306303,1742241046500,-1201.71,8.493e-05,2]
[356306304,1742241046509,-500.0,8.493e-05,2]
[356306305,1742241046518,-500.0,8.493e-05,2]
[356306306,1742241046527,-500.0,8.493e-05,2]
[356306307,1742241046537,-500.0,8.493e-05,2]
[356306308,1742241046546,-512.77811079,8.493e-05,2]
[356306309,1742241046555,-500.0,8.493e-05,2]
[356306310,1742241046565,-500.0,8.493e-05,2]
[356306311,1742241046575,-505.82357378,8.493e-05,2]
[356306312,1742241046584,-500.0,8.493e-05,2]
[356306313,1742241046593,-1215.5,8.493e-05,2]
[356306315,1742241046603,-1429.68,8.493e-05,2]
[356306317,1742241046612,-500.0,8.493e-05,2]
[356306318,1742241046621,-500.0,8.493e-05,2]
[356306319,1742241046630,-500.0,8.493e-05,2]
[356306320,1742241046639,-500.0,8.493e-05,2]
[356306321,1742241046649,-500.0,8.493e-05,2]
[356306322,1742241046658,-558.17525876,8.493e-05,2]
[356306323,1742241046667,-694.01,8.493e-05,2]
[356306324,1742241046677,-500.0,8.493e-05,2]
[356306325,1742241046689,-564.92,8.493e-05,2]
[356306326,1742241046698,-500.0,8.493e-05,2]
[356306327,1742241046708,-15794.89,8.493e-05,2]
[356306328,1742241046718,-2854.61,8.493e-05,2]
[356306329,1742241046729,-503.90404576,8.493e-05,2]
[356306330,1742241046739,-500.0,8.493e-05,2]
[356306331,1742241046748,-500.0,8.493e-05,2]
[356306332,1742241046759,-500.0,8.493e-05,2]
[356306333,1742241046769,-599.1,8.493e-05,2]
[356306334,1742241046779,-3236.04,8.493e-05,2]
[356306335,1742241046788,-500.0,8.493e-05,2]
[356306336,1742241046797,-152.62978296,8.493e-05,2]
[356306337,1742241046806,-500.0,8.493e-05,2]
[356306338,1742241046816,-532.73054238,8.493e-05,2]
[356306339,1742241046827,-528.11329728,8.493e-05,2]
[356306340,1742241046837,-5474.62,8.493e-05,2]
[356306341,1742241046847,-1660.97,8.493e-05,2]
[356306342,1742241046857,-500.0,8.493e-05,2]
[356306343,1742241046866,-500.0,8.493e-05,2]
[356306344,1742241046876,-500.0,8.493e-05,2]
[356306345,1742241046884,-573.63,8.493e-05,2]
[356306346,1742241046893,-105961.58,8.493e-05,2]
[356306347,1742241046903,-151.43226885,8.493e-05,2]
[356306348,1742241046912,-500.0,8.493e-05,2]
[356306349,1742241046921,-500.0,8.493e-05,2]
[356306350,1742241046930,-822.69,8.493e-05,2]
[356306351,1742241046939,-500.0,8.493e-05,2]
[356306352,1742241046949,-13571.01,8.493e-05,2]
[356306353,1742241046959,-510.18919299,8.493e-05,2]
[356306354,1742241046968,-5069.44,8.493e-05,2]
[356306355,1742241046977,-500.0,8.493e-05,2]
[356306356,1742241046987,-524.50189074,8.493e-05,2]
[356306357,1742241046996,-500.0,8.493e-05,2]
[356306358,1742241047006,-500.0,8.493e-05,2]
[356306359,1742241047015,-500.0,8.493e-05,2]
[356306360,1742241047025,-500.0,8.493e-05,2]
[356306361,1742241047034,-500.0,8.493e-05,2]
[356306362,1742241047043,-500.0,8.493e-05,2]
[356306363,1742241047052,-868.95,8.493e-05,2]
[356306364,1742241047061,-500.0,8.493e-05,2]
[356306365,1742241047071,-1232.3,8.5e-05,2]
[356306366,1742241047080,-32131.12140547,8.518e-05,2]
[356306367,1742241047089,-250.0,8.71e-05,2]
[356306368,1742241047099,-500.0,8.767e-05,2]
[356306369,1742241047109,-879.11,8.767e-05,2]
[356306370,1742241047119,-225.78777769,8.767e-05,2]
[356306371,1742241047131,-243.81010267,8.767e-05,2]
[356306372,1742241047141,-500.0,8.767e-05,2]
[356306373,1742241047150,-500.0,8.767e-05,2]
[356306374,1742241047160,-500.0,8.767e-05,2]
[356306375,1742241047170,-500.0,8.767e-05,2]
[356306376,1742241047179,-500.0,8.767e-05,2]
[356306377,1742241047188,-500.0,8.767e-05,2]
[356306378,1742241047199,-500.0,8.767e-05,2]
[356306379,1742241047209,-500.0,8.767e-05,2]
[356306380,1742241047219,-500.0,8.767e-05,2]
[356306381,1742241047228,-500.0,8.767e-05,2]
[356306382,1742241047238,-500.0,8.767e-05,2]
[356306383,1742241047248,-500.0,8.767e-05,2]
[356306384,1742241047257,-972.84,8.767e-05,2]
[356306385,1742241047267,-500.0,8.767e-05,2]
[356306386,1742241047277,-833.73,8.767e-05,2]
[356306387,1742241047287,-500.0,8.767e-05,2]
[356306388,1742241047297,-932.54,8.767e-05,2]
[356306389,1742241047307,-500.0,8.767e-05,2]
[356306390,1742241047316,-1426.76,8.767e-05,2]
[356306391,1742241047326,-500.0,8.767e-05,2]
[356306392,1742241047336,-500.0,8.767e-05,2]
[356306393,1742241047346,-500.0,8.767e-05,2]
[356306394,1742241047355,-500.0,8.767e-05,2]
[356306395,1742241047365,-500.0,8.767e-05,2]
[356306396,1742241047375,-500.0,8.767e-05,2]
[356306397,1742241047385,-500.0,8.767e-05,2]
[356306398,1742241047394,-500.0,8.767e-05,2]
[356306399,1742241047404,-500.0,8.767e-05,2]
[356306400,1742241047414,-679.5,8.767e-05,2]
[356306401,1742241047424,-500.0,8.767e-05,2]
[356306402,1742241047434,-500.0,8.767e-05,2]
[356306403,1742241047443,-500.0,8.767e-05,2]
[356306404,1742241047453,-500.0,8.767e-05,2]
[356306405,1742241047463,-500.0,8.767e-05,2]
[356306406,1742241047472,-500.0,8.767e-05,2]
[356306407,1742241047482,-505.96563084,8.767e-05,2]
[356306408,1742241047492,-500.0,8.767e-05,2]
[356306409,1742241047501,-500.0,8.767e-05,2]
[356306410,1742241047511,-500.0,8.767e-05,2]
[356306411,1742241047520,-500.0,8.767e-05,2]
[356306412,1742241047530,-500.0,8.767e-05,2]
[356306413,1742241047539,-500.0,8.767e-05,2]
[356306414,1742241047549,-500.0,8.767e-05,2]
[356306415,1742241047559,-500.0,8.767e-05,2]
[356306416,1742241047569,-500.0,8.767e-05,2]
[356306417,1742241047579,-765.94,8.767e-05,2]
[356306418,1742241047588,-500.0,8.767e-05,2]
[356306419,1742241047598,-964.85,8.767e-05,2]
[356306420,1742241047608,-500.0,8.767e-05,2]
[356306421,1742241047618,-505.20523654,8.767e-05,2]
[356306422,1742241047627,-547.49549715,8.767e-05,2]